[Event "FIDE WSCC 65 2022"]
[Site "Assisi"]
[Date "2022.11.24"]
[Round "9.9"]
[White "Roos, Jean-Luc"]
[Black "Bogdanov, Valentin"]
[Result "0-1"]
[ECO "A16"]
[WhiteElo "2195"]
[BlackElo "2323"]
[Annotator "TA"]
[PlyCount "132"]
[EventDate "2022.11.14"]
[EventType "swiss"]
[EventCountry "ITA"]
[SourceTitle "playchess.com"]
[Source "ChessBase"]
[SourceQuality "1"]
[TimeControl "40/5400+30:1800+30"]

{[%evp 13,132,23,27,18,14,20,51,16,24,37,27,33,12,24,21,0,0,0,0,0,13,20,46,20,42,0,81,63,63,56,65,64,73,71,89,91,88,75,130,120,147,77,83,72,80,0,75,77,83,73,83,47,28,22,21,24,38,0,0,0,-4,-63,-41,-31,-72,-76,-75,-63,-66,-94,-70,-63,-45,-39,-41,-49,-48,-175,-191,-191,-176,-282,-301,-283,-293,-278,-152,-318,-123,-777,-722,-1129,-1048,-995,-942,-866,-197,-197,-170,-197,-209,-29981,-214,-6223,-589,-587,-581,-570,-570,-539,-216,-1291,-1276,-1093,-537,-537,-526,-512,-495,-510,-474]} 1. c4 {[%emt 0:00:04]} Nf6 {[%emt 0:01:14]} 2. Nc3 {[%emt 0:00:15]} d5 {[%emt 0:00:26]} 3. cxd5 {[%emt 0:00:25]} Nxd5 {[%emt 0:00:07]} 4. g3 {[%emt 0:00:18]} g6 {[%emt 0:02:40]} 5. Bg2 {[%emt 0:00:20]} Nb6 {[%emt 0:00:10]} 6. d3 {[%emt 0:00:52]} Bg7 {[%emt 0:00:18]} 7. Be3 {[%emt 0:00:30]} Nc6 {[%emt 0:00:57][%cal Bb8c6,Bc6d4,Bd4f5][%mdl 32]} 8. Qc1 {[%emt 0:06:07] A16: English Opening: 1...Nf6 with ...d5.} Nd4 {[%emt 0:03:06]} 9. Nf3 {[%emt 0:00:26]} Nf5 {[%emt 0:03:23]} 10. Bd2 {[%emt 0:02:16] White is slightly better.} (10. Bf4 $5 {[%cal Rc3b5]}) 10... c6 {[%emt 0:01:05]} 11. h4 {[%emt 0:11:18]} h5 {[%emt 0:02:23]} 12. O-O {[%emt 0:06:17]} O-O {[%emt 0:02:17] [#]} 13. a4 $146 {[%emt 0:01:34]} ({Predecessor:} 13. Ne4 Nd5 14. Rb1 a5 15. Bc3 Nxc3 16. bxc3 Nd6 17. Nfd2 a4 18. Nxd6 exd6 19. d4 {½-½ (34) Tello Chavez,I (2254)-Soto,M (2347) Mexico City 2021}) 13... a5 {[%emt 0:01:07]} 14. e4 {[%emt 0:01:08]} Nd4 {[%emt 0:04:37]} 15. Nxd4 {[%emt 0:02:12]} Qxd4 {[%emt 0:00:33]} 16. Be3 {[%emt 0:02:27]} Qd8 {[%emt 0:00:07]} 17. Qc2 {[%emt 0:02:31]} Nd7 {[%emt 0:08:57]} 18. Rad1 {[%emt 0:06:55]} Ne5 {[%emt 0:04:28]} 19. d4 {[%emt 0:12:21]} Nc4 {[%emt 0:01:53]} (19... Ng4 $1 $11 {keeps the balance.}) 20. Bc1 $36 {[%emt 0:01:04][%mdl 2048] White has some pressure.} Bg4 {[%emt 0:01:43]} (20... Bxd4 $2 21. Ne2 c5 22. Qxc4 $18) 21. Ne2 {[%emt 0:01:34]} Nb6 {[%emt 0:03:44]} 22. f3 {[%emt 0:02:55]} Be6 {[%emt 0:03:02]} 23. b3 {[%emt 0:00:18] Against Bc4} Qd6 {[%emt 0:07:20]} 24. Kh2 {[%emt 0:01:24]} Rfd8 {[%emt 0:07:12]} 25. Be3 {[%emt 0:04:45]} Qb4 {[%emt 0:03:22]} (25... Nd7 $142) 26. Rd3 $16 {[%emt 0:01:30]} Nd7 {[%emt 0:01:00]} 27. Rb1 {[%emt 0:03:19]} (27. Nf4 $142) 27... Nf8 {[%emt 0:03:00]} 28. Bd2 {[%emt 0:02:02]} Qb6 {[%emt 0:07:31]} 29. b4 {[%emt 0:00:40]} (29. Bg5 $16) 29... Qa6 {[%emt 0:03:11]} (29... axb4 $11 30. Rxb4 Qa6) 30. b5 {[%emt 0:04:49]} (30. bxa5 $2 Bc4 31. Nc1 Bxd3 32. Nxd3 Ne6 $19) 30... cxb5 {[%emt 0:00:05]} 31. axb5 {[%emt 0:00:17]} (31. Rxb5 Rac8 32. Qb2 (32. Rc3 Bd7 $17) 32... Bd7 $15) 31... Qb6 {[%emt 0:03:56]} 32. Qa4 {[%emt 0:01:58]} Rdc8 {[%emt 0:02:30]} 33. d5 {[%emt 0:00:13]} Bd7 {[%emt 0:00:20]} 34. Be3 {[%emt 0:02:30]} Qd8 {[%emt 0:00:49]} 35. Bd4 {[%emt 0:02:46]} (35. Rd2 {simplifies} Qe8 36. f4 e5 37. dxe6 Nxe6 38. e5) 35... Bxd4 {[%emt 0:01:15]} 36. Qxd4 {[%emt 0:01:19]} Rc2 {[%emt 0:00:38]} 37. Rb2 {[%emt 0:01:26] [#]} ({White should try} 37. Qe3 $1 $11) 37... Rxe2 $1 $15 {[%emt 0:01:26]} 38. Rxe2 {[%emt 0:00:56]} Bxb5 {[%emt 0:00:07]} 39. Rb2 {[%emt 0:00:53]} Bxd3 {[%emt 0:00:24]} 40. Qxd3 {[%emt 0:00:01][%cal Oe4e5]} Nd7 {[%emt 0:02:30][%cal Bf8d7,Bd7c5,Bc5e4][%mdl 32] Prevents e5.} 41. Qb5 {[%emt 0:37:20][%cal Og2h3]} b6 {[%emt 0:31:52]} 42. f4 {[%emt 0:03:32] Against Ne5} a4 {[%emt 0:07:27][%cal Ba5a4,Ba4a3][%mdl 32]} 43. e5 {[%emt 0:03:43] Prevents Nf6.} Ra5 {[%emt 0:01:11]} 44. Qb4 {[%emt 0:00:00]} Nc5 {[%emt 0:00:00]} 45. d6 {[%emt 0:00:00] White is now going downhill.} (45. Re2 $15) 45... exd6 $19 {[%emt 0:00:00]} 46. Rd2 {[%emt 0:00:00]} a3 {[%emt 0:00:00] Strongly threatening ...a2.} 47. Bd5 {[%emt 0:00:00] [#] Prevents a2.} (47. Qb1 $142) 47... Kg7 $1 {[%emt 0:00:00] Threatens to win with ...dxe5.} 48. Ba2 {[%emt 0:00:00]} Ra4 {[%emt 0:00:00]} 49. Qb5 {[%emt 0:00:00]} Ne4 {[%emt 0:00:00]} (49... Qe7 $19 50. e6 fxe6 51. Qxb6 Ra7) 50. Rd3 $2 {[%emt 0:00:00]} (50. Qxa4 $17 {might work better.} Nxd2 51. Qa7) 50... Ra5 $2 {[%emt 0:00:00]} (50... Qa8 $19 {and Black stays clearly on top. Hoping for ...Nf2.} 51. Qb3 Kh6 52. Qxf7 Ra7) 51. Qb4 $2 {[%emt 0:00:00][%mdl 8192] [#]} (51. Qc4 $17 f5 52. exd6) 51... Qc7 $1 {[%emt 0:00:00]} 52. Qxe4 {[%emt 0:00:49]} (52. Qc4 Qxc4) 52... Qc2+ {[%emt 0:00:00]} (52... dxe5 53. Re3 exf4 54. Qd4+ Kh7 55. Re8 Qc2+ 56. Kh3 Qf5+ 57. Kh2 Qc2+ 58. Kh3 Qf5+ 59. Kh2 Qc2+ $11) 53. Kh3 {[%emt 0:00:42]} Qxa2 {[%emt 0:00:00]} 54. exd6 {[%emt 0:00:26][%mdl 4096] Endgame KQR-KQR} Qb2 $2 {[%emt 0:00:00]} ({Inferior is} 54... Qf2 55. d7 a2 56. Rd1 $17) (54... Rb5 {( -> ...Rb2)} 55. Rd1 Rb2) 55. d7 {[%emt 0:00:35]} a2 {[%emt 0:00:00] The board is on fire.} 56. Rd1 {[%emt 0:03:05]} (56. d8=R a1=Q 57. Qg2 Qxg2+ 58. Kxg2 Qe1 59. Rd2 Ra3 60. R8d3 Rxd3 61. Rxd3 Qe2+ 62. Kg1 Qxd3 63. f5 Qe2 64. Kh1 Qf1+ 65. Kh2 gxf5 66. g4 fxg4 67. Kg3 Kf6 68. Kh2 Kf5 69. Kg3 Qg1#) 56... Qf6 {[%emt 0:00:00]} 57. Ra1 $2 {[%emt 0:00:35]} (57. d8=Q $19 Qxd8 58. Rxd8) 57... Ra7 $2 {[%emt 0:00:00]} (57... Qxa1 {mates} 58. d8=Q Qf1+ 59. Kh2 Qf2+ 60. Qg2 Qxg2+ 61. Kxg2 a1=Q 62. Qd2 Ra2 63. Qxa2 Qxa2+ 64. Kf3 Qd2 65. Ke4 f5+ 66. Kf3 Kh7 67. g4 hxg4+ 68. Kg3 Kh6 69. h5 gxh5 70. Kh4 Qh2#) 58. Qg2 $2 {[%emt 0:01:55]} (58. Qe5 Qxe5 59. fxe5 Rxd7 60. Rxa2) 58... Qf5+ {[%emt 0:03:08]} (58... Qxa1 $142 59. d8=Q Qc3) 59. Kh2 {[%emt 0:00:19]} Qxd7 {[%emt 0:00:02] ...Qe6 is the strong threat.} ({Worse is} 59... Rxd7 60. Qb2+ Kh7 61. Rxa2 $17) 60. Rxa2 {[%emt 0:00:20]} Rxa2 {[%emt 0:01:11]} 61. Qxa2 {[%emt 0:00:06] KQ-KQ} Qd4 {[%emt 0:00:27] Prevents Qb2.} (61... Kg8 $142 62. Qa8+ Kh7) 62. Qa7 $2 {[%emt 0:00:37]} (62. Qe2) 62... Qf2+ {[%emt 0:01:10] Black is clearly winning.} 63. Kh3 {[%emt 0:01:33]} Qf1+ {[%emt 0:00:07]} (63... Qg1 $142 {[%cal Rg1h1]} 64. Qb7 b5) 64. Kh2 {[%emt 0:00:07]} b5 {[%emt 0:00:26] White must now prevent ...Qe2+.} 65. Qd4+ {[%emt 0:00:21]} Kh7 {[%emt 0:00:16]} 66. Qf6 {[%emt 0:01:56]} Qc4 {[%emt 0:00:10] Weighted Error Value: White=0.68/Black=0.43} 0-1

[Event "FIDE WSCC 65 2022"]
[Site "Assisi"]
[Date "2022.11.24"]
[Round "9.10"]
[White "Lanc, Alois"]
[Black "Gruzmann, Boris"]
[Result "0-1"]
[ECO "C74"]
[WhiteElo "2268"]
[BlackElo "2156"]
[Annotator "TA"]
[PlyCount "64"]
[EventDate "2022.11.14"]
[EventType "swiss"]
[EventCountry "ITA"]
[SourceTitle "playchess.com"]
[Source "ChessBase"]
[SourceQuality "1"]
[TimeControl "40/5400+30:1800+30"]

{[%evp 15,64,45,55,68,68,73,97,94,104,41,45,21,17,22,85,0,108,0,0,0,0,-118,-111,-152,-17,-60,247,-198,-191,-575,-568,-1040,-749,-657,-802,-724,-356,-350,-346,-467,-443,-438,-439,-433,-428,-406,-404,-370,-98,-108,-89]} 1. e4 {[%emt 0:00:07]} e5 {[%emt 0:00:25]} 2. Nf3 {[%emt 0:00:18]} Nc6 {[%emt 0:00:13]} 3. Bb5 {[%emt 0:00:51]} a6 {[%emt 0:00:15]} 4. Ba4 {[%emt 0:00:35]} d6 {[%emt 0:00:19]} 5. c3 {[%emt 0:00:51]} f5 {[%emt 0:01:35]} 6. exf5 {[%emt 0:01:36]} Bxf5 {[%emt 0:00:12]} 7. O-O {[%emt 0:00:58]} Bd3 {[%emt 0:00:18]} 8. Re1 {[%emt 0:00:24]} Be7 {[%emt 0:00:13]} 9. Qb3 {[%emt 0:03:28] C74: Ruy Lopez: Deferred Steinitz: 5 c3 f5.} Rb8 {[%emt 0:00:19]} 10. Qd5 {[%emt 0:01:30][%csl LRc6,LRd3]} e4 {[%emt 0:00:21] is the legacy move (10...Bf5).} 11. Bb3 $1 {[%emt 0:04:44] Intending Qf7+ and mate. White is better.} (11. Bxc6+ bxc6 12. Qxc6+ Qd7 $15) 11... Nh6 {[%emt 0:02:12] Prevents Qf7+.} 12. Ng5 {[%emt 0:01:08]} Ne5 $14 {[%emt 0:08:48]} (12... Bxb1 $2 13. Ne6 (13. Nxe4 Bxe4 14. Rxe4 Ne5 $14) 13... Qd7 14. Rxb1 $18) 13. Nxe4 {[%emt 0:02:43]} Rf8 $1 {[%emt 0:10:22] [#]} 14. Na3 $146 {[%emt 0:20:46]} ({Predecessor:} 14. Ng3 c6 15. Qd4 c5 16. Qd5 c4 17. Bd1 b5 18. h3 Qb6 19. Qd4 Bg6 20. Qxb6 Rxb6 {0-1 (41) Staebeler,P-Vanderploeg,J ICCF corr 1990}) 14... Nhg4 {[%emt 0:10:55]} (14... Rf5 $1 $11) 15. Bc2 {[%emt 0:13:22]} (15. h3 $16 Nf6 16. Nxf6+ Rxf6 17. Nc4) 15... Rf5 {[%emt 0:10:10]} 16. Qg8+ {[%emt 0:08:42]} (16. Bxd3 Nf3+ $1 17. gxf3 Rxd5 $17) ({Only move:} 16. Qe6 $16 Qd7 17. Qxd7+ (17. Ba4 b5 $17) 17... Kxd7 18. h3) 16... Rf8 $11 {[%emt 0:04:58]} 17. Qxh7 {[%emt 0:05:01]} Nxf2 {[%emt 0:05:01][%mdl 64] Hoping for ...Qd7.} 18. Bxd3 {[%emt 0:10:20]} (18. Qxg7 $11 Bf6 19. Nxf6+ Qxf6 20. Qxf6 (20. Qxc7 Nh3+ 21. gxh3 Rg8+) 20... Rxf6 21. Nc4 $1) 18... Nfxd3 $17 {[%emt 0:00:25]} 19. Re3 {[%emt 0:01:10]} (19. Rf1 $2 d5 20. Rxf8+ Bxf8 $19) 19... d5 {[%emt 0:05:21] Black is more active.} (19... Qd7 $17 {aiming for ...Qg4.} 20. Ng3 Qg4 21. Qh5+ Qxh5 22. Nxh5 Bg5) 20. Nf2 {[%emt 0:03:23]} Bc5 $2 {[%emt 0:12:36][%mdl 8192]} (20... Nxf2 21. Rxe5 Qd7 22. h3 $18 (22. Qxg7 Ng4 $16)) (20... Rxf2 $15 {stays ahead.} 21. Rxe5 Nxe5 22. Kxf2 Bxa3 23. bxa3 (23. Qh5+ Kd7 $15) 23... Qf6+ 24. Kg1 Kd7 25. Qh3+ Kc6) 21. Qh5+ $4 {[%emt 0:01:59][%mdl 8192]} (21. Nxd3 Qf6 $1 22. h3 Bxe3+ 23. dxe3 Qf1+ 24. Kh2 Nxd3 $17) (21. Qg6+ $2 Kd7 22. Qxg7+ Rf7 $19) (21. Qxd3 $18 {was the only winning move.} Qf6 22. Qe2 $1 Bxe3 23. dxe3 (23. Qxe3 Kd7 $11)) 21... Kd7 $19 {[%emt 0:03:16] The board is on fire.} 22. Qh3+ $2 {[%emt 0:03:53]} (22. Nxd3 Nxd3 23. Qxd5+ Kc8 24. Qxd8+ Rxd8 25. Nc2) 22... Kd6 {[%emt 0:01:23]} 23. Rxd3 {[%emt 0:04:48]} Nxd3 {[%emt 0:02:52]} 24. Qxd3 {[%emt 0:00:08]} Bxf2+ {[%emt 0:01:34]} (24... Rxf2 25. Qg3+ Kc6 26. d4 $16 (26. Qxg7 Qe8 27. Qh6+ Rf6+)) 25. Kh1 {[%emt 0:00:05]} Qf6 {[%emt 0:03:21]} (25... Qe8 $142 {( -> ...Qe1+)} 26. Nc4+ Kc6) 26. b3 {[%emt 0:01:56]} Rbe8 {[%emt 0:04:29]} 27. Bb2 {[%emt 0:01:20]} Re1+ {[%emt 0:01:42]} 28. Rxe1 {[%emt 0:00:13]} Bxe1 {[%emt 0:00:08]} 29. Nc4+ {[%emt 0:00:30]} Kd7 {[%emt 0:04:15]} 30. Ne3 {[%emt 0:01:21] [#] Against Qf1+} (30. Qxd5+ $2 Kc8 31. Qf3 Qe7 32. Qg4+ Kb8) 30... Bxd2 $1 {[%emt 0:00:17][%mdl 512]} 31. Ba3 {[%emt 0:01:51][%cal Oa3f8] [#]} (31. Qxd2 $2 Qf1+ $3 {[%mdl 512]} 32. Nxf1 Rxf1#) 31... Bxe3 $2 {[%emt 0:01:29]} ({Less strong is} 31... Bxc3 32. Bxf8 d4 33. Ba3 $18) (31... Rf7 $1 $19 {has better winning chances.} 32. Bc5 (32. Qxd2 $2 {is a self mate.} Qf1+ 33. Nxf1 Rxf1#) (32. Qxd5+ $2 {is the wrong capture.} Kc8 $19) 32... Bxc3 33. Qxd5+ Kc8) 32. Bxf8 $17 {[%emt 0:00:18] [#]} Qf2 $1 {[%emt 0:00:58] Weighted Error Value: White=1.02/Black=0.88} 0-1

[Event "FIDE WSCC 65 2022"]
[Site "Assisi"]
[Date "2022.11.24"]
[Round "9.11"]
[White "Luciani, Carlo"]
[Black "Chapman, Terry P D"]
[Result "1-0"]
[ECO "B15"]
[WhiteElo "2187"]
[BlackElo "2216"]
[Annotator "TA"]
[PlyCount "137"]
[EventDate "2022.11.14"]
[EventType "swiss"]
[EventCountry "ITA"]
[SourceTitle "playchess.com"]
[Source "ChessBase"]
[SourceQuality "1"]
[TimeControl "40/5400+30:1800+30"]

{[%evp 15,137,0,0,0,6,0,0,0,0,0,6,5,23,23,37,31,35,27,28,32,40,29,50,54,58,41,61,53,59,45,48,39,50,24,15,13,16,24,21,0,7,-32,62,57,112,112,112,82,75,79,112,132,128,128,115,117,160,149,141,109,197,190,194,191,342,319,456,404,460,459,549,547,571,535,595,585,549,247,234,153,680,681,668,602,581,554,649,627,670,635,1658,1613,1493,1483,1480,1387,1160,1156,1108,745,954,703,777,691,1168,955,1621,1641,1385,3094,29979,29980,29980,29981,29988,29984,29984,29985,29985,29986,29986,29987,29989,29978]} 1. e4 {[%emt 0:00:02]} c6 {[%emt 0:00:05]} 2. Nc3 {[%emt 0:01:04]} d5 {[%emt 0:00:06]} 3. Nf3 {[%emt 0:00:18]} dxe4 {[%emt 0:00:08]} 4. Nxe4 {[%emt 0:00:07]} Nf6 {[%emt 0:00:04]} 5. Nxf6+ {[%emt 0:00:25]} exf6 {[%emt 0:00:07]} 6. d4 {[%emt 0:02:15]} Bd6 {[%emt 0:00:05]} 7. Be2 {[%emt 0:00:59]} O-O {[%emt 0:00:12]} 8. O-O {[%emt 0:00:18]} Re8 {[%emt 0:00:47]} 9. c4 {[%emt 0:01:51] B15: Caro-Kann: 3 Nc3: 3...g6 and 3...dxe4 4 Nxe4 Nf6 5 Nxf6+ exf6.} Nd7 {[%emt 0:06:21]} 10. Bd2 {[%emt 0:01:48]} Nf8 {[%emt 0:01:29]} 11. Re1 {[%emt 0:01:24] [#] The position is equal.} Bd7 $146 {[%emt 0:03:17]} ({Predecessor:} 11... Be6 12. Qb3 Rb8 13. a4 Ng6 14. Bf1 a6 15. a5 Qc7 16. Bb4 Bxb4 17. Qxb4 Bg4 18. Rxe8+ Rxe8 {½-½ (32) Sibajeva,M (2060)-Stepins,E (2277) Riga 2020}) 12. Qc2 {[%emt 0:02:38]} b5 {[%emt 0:04:19]} 13. b3 {[%emt 0:01:23]} (13. h3 {keeps more tension.} bxc4 14. Bxc4 Rb8 15. Rxe8 Qxe8 16. Rc1) 13... Rc8 {[%emt 0:01:39]} 14. h3 {[%emt 0:03:36]} Bb8 {[%emt 0:02:07]} 15. Bf1 {[%emt 0:03:07]} bxc4 {[%emt 0:08:58]} 16. Rxe8 {[%emt 0:05:42]} Bxe8 {[%emt 0:01:43]} 17. bxc4 {[%emt 0:03:27]} Ne6 {[%emt 0:12:08]} 18. Bc3 {[%emt 0:03:02]} Qc7 {[%emt 0:05:27]} 19. g3 {[%emt 0:01:01]} Bd7 {[%emt 0:01:50]} 20. Bg2 {[%emt 0:01:41]} h5 {[%emt 0:01:07]} 21. Qd2 {[%emt 0:06:48]} (21. Re1 {looks sharper.} c5 22. d5 Nd4 23. Qd2) 21... c5 {[%emt 0:10:04]} 22. Ba5 {[%emt 0:03:28]} Qd6 {[%emt 0:00:35][%cal Rc5d4]} 23. d5 {[%emt 0:00:12]} Nf8 {[%emt 0:01:29]} 24. Bc3 $36 {[%emt 0:10:23][%mdl 2048] White has some pressure.} Ng6 {[%emt 0:00:38]} 25. h4 {[%emt 0:00:32]} Re8 {[%emt 0:03:29]} 26. Re1 {[%emt 0:01:09]} Rxe1+ {[%emt 0:00:42]} 27. Qxe1 {[%emt 0:00:48]} f5 {[%emt 0:05:21]} 28. Qa1 {[%emt 0:16:17]} f6 {[%emt 0:01:59]} ({Black should try} 28... f4 $15 29. Be1 (29. Bxg7 fxg3 30. Qf6 gxf2+ 31. Kf1 Bg4 $15) 29... Bf5) 29. Qb1 $14 {[%emt 0:03:14]} Kf7 {[%emt 0:05:27] [#]} (29... Qb6 $14 30. Qc2 Qd8) 30. Bh3 $1 $16 {[%emt 0:04:10]} Ne7 {[%emt 0:03:30]} 31. Bd2 {[%emt 0:02:13] Hoping for Bf4. White is much more active.} Qb6 {[%emt 0:00:20]} 32. Qc1 {[%emt 0:02:42]} Ng6 {[%emt 0:12:02]} 33. Qc2 {[%emt 0:02:00]} Ne7 {[%emt 0:00:46]} 34. Ne1 {[%emt 0:02:14][%cal Bf3e1,Be1d3,Bd3f4][%mdl 32]} Bd6 {[%emt 0:04:38]} 35. Nd3 {[%emt 0:00:37]} Qc7 {[%emt 0:01:24]} 36. Bf4 {[%emt 0:00:51]} Bxf4 {[%emt 0:01:56]} 37. Nxf4 {[%emt 0:00:25]} (37. gxf4 $6 Ng6 $14) 37... g6 {[%emt 0:01:01]} (37... g5 $16) 38. Qd2 $18 {[%emt 0:01:02]} Nc8 {[%emt 0:00:56]} 39. Nd3 {[%emt 0:00:36] Qh6 is the strong threat.} Kg7 {[%emt 0:01:07] Against Qh6+} (39... Be8 40. Bf1 Nd6) 40. Qe3 {[%emt 0:00:51]} Qa5 {[%emt 0:00:30]} (40... f4 {is a better defense.} 41. Nxf4 (41. gxf4 Bxh3 42. Qxh3 Nd6 $14) 41... Bxh3) 41. Qxc5 {[%emt 0:30:57]} ({Not} 41. Nxc5 f4 42. Ne6+ (42. Qxf4 Bxh3 43. Ne4 Bf5 $17) 42... Bxe6 43. Qxe6 fxg3 44. Qd7+ (44. Qxc8 $2 {leads to mate.} Qe1+ 45. Bf1 Qxf2+ 46. Kh1 Qxf1#) (44. fxg3 Qc5+ 45. Kh2 f5 $18) 44... Kh6 $18) 41... Qxc5 {[%emt 0:00:45]} 42. Nxc5 {[%emt 0:00:00][%mdl 4096] Endgame KBN-KBN} Nb6 {[%emt 0:00:03]} 43. f4 {[%emt 0:00:00]} Kf7 {[%emt 0:04:45]} 44. Bf1 {[%emt 0:00:00]} Ke7 {[%emt 0:00:10]} 45. Kf2 {[%emt 0:00:00]} Kd6 {[%emt 0:00:38]} 46. Nb7+ {[%emt 0:00:00]} (46. Nb3 $142 Nxd5 47. cxd5) 46... Kc7 {[%emt 0:00:31] [#]} 47. Na5 {[%emt 0:00:00]} Na4 $2 {[%emt 0:00:20] A mistake that costs the game.} (47... Ba4 $16 48. Ke3 Nd7) 48. Ke3 {[%emt 0:00:00]} Nc5 {[%emt 0:08:46]} 49. Nb3 {[%emt 0:00:00]} Ne4 {[%emt 0:02:15]} 50. c5 {[%emt 0:00:00]} Ba4 {[%emt 0:05:39]} 51. Kd4 {[%emt 0:00:00]} Nxg3 {[%emt 0:02:49]} 52. Bd3 {[%emt 0:00:00]} Be8 {[%emt 0:03:49]} 53. d6+ {[%emt 0:00:00]} Kc8 {[%emt 0:01:52]} 54. Na5 {[%emt 0:00:00]} Ne4 {[%emt 0:01:10]} 55. Bxe4 {[%emt 0:00:00]} fxe4 {[%emt 0:00:01]} 56. Kxe4 {[%emt 0:00:00] Strongly threatening c6. KB-KN} Kd7 {[%emt 0:00:17]} 57. Nb3 {[%emt 0:00:32]} Bf7 {[%emt 0:00:26]} 58. Nc1 {[%emt 0:00:24]} Kc6 {[%emt 0:00:38]} 59. Kd4 {[%emt 0:00:03]} a5 {[%emt 0:01:24]} 60. a3 {[%emt 0:00:15]} Be6 {[%emt 0:00:40]} 61. Nd3 {[%emt 0:00:52]} Kb5 {[%emt 0:01:13]} 62. Nf2 {[%emt 0:00:19]} g5 {[%emt 0:01:19]} 63. fxg5 {[%emt 0:00:10] White mates.} fxg5 {[%emt 0:00:02]} 64. hxg5 {[%emt 0:00:23][%cal Bh4g5,Bg5g6,Bg6g7][%mdl 32]} h4 {[%emt 0:00:05]} 65. g6 {[%emt 0:00:33]} Kc6 {[%emt 0:00:57]} 66. g7 {[%emt 0:00:12]} Kd7 {[%emt 0:01:07]} 67. Ke5 {[%emt 0:00:12]} Bg8 {[%emt 0:00:18]} 68. Kf6 {[%emt 0:00:14]} Bd5 {[%emt 0:01:50]} 69. Kg5 {[%emt 0:00:32] Weighted Error Value: White=0.14 (very precise) /Black=0.40} 1-0